Body,Body Name,Date,TransNo,Amount � (Excl VAT),Supplier name,Description,Expense Area,Expense Type,Expense Code,
http://opendatacommunities.org/id/london-borough-council/sutton,London Borough of Sutton,23/09/2022,10008658,169.81, AMZNMKTPLACE,TOYS AND EQUIPMENT SUTTON,Health and Wellbeing,Equipment And Materials Purchase,A40000,
http://opendatacommunities.org/id/london-borough-council/sutton,London Borough of Sutton,22/09/2022,10008658,8.32, TWINKL,TWINKL SUBSCRIPTION,Health and Wellbeing,Equipment And Materials Purchase,A40000,
http://opendatacommunities.org/id/london-borough-council/sutton,London Borough of Sutton,20/09/2022,10008658,68.98, THE ENTERTAINER,TOYS SUTTON,Health and Wellbeing,Equipment And Materials Purchase,A40000,
http://opendatacommunities.org/id/london-borough-council/sutton,London Borough of Sutton,11/09/2022,10008658,14.59, EBAY O 12-09085-61348,TOYS GRANGE,Health and Wellbeing,Equipment And Materials Purchase,A40000,
http://opendatacommunities.org/id/london-borough-council/sutton,London Borough of Sutton,08/09/2022,10008658,23.73, SMYTHS TOYS CROYDON,TOYS GRANGE,Health and Wellbeing,Equipment And Materials Purchase,A40000,
http://opendatacommunities.org/id/london-borough-council/sutton,London Borough of Sutton,02/09/2022,10008658,26.65, STAPLES,STATIONARY BOTH CENTRES,Health and Wellbeing,Equipment And Materials Purchase,A40000,
http://opendatacommunities.org/id/london-borough-council/sutton,London Borough of Sutton,13/09/2022,10008658,13.00, EBAY O 25-09091-49431,TOYS GRANGE,Health and Wellbeing,Equipment And Materials Purchase,A40000,
http://opendatacommunities.org/id/london-borough-council/sutton,London Borough of Sutton,13/09/2022,10008658,25.00, ARGOS LTD,TOASTER SUTTON,Health and Wellbeing,Equipment And Materials Purchase,A40000,
http://opendatacommunities.org/id/london-borough-council/sutton,London Borough of Sutton,13/09/2022,10008658,17.57, ASDA SUPERSTORE,GROCERIES,Health and Wellbeing,Provisions,A41006,
http://opendatacommunities.org/id/london-borough-council/sutton,London Borough of Sutton,01/09/2022,10008658,6.38, SAINSBURYS S/MKTS,SUTTON GROCERIES,Health and Wellbeing,Provisions,A41006,
http://opendatacommunities.org/id/london-borough-council/sutton,London Borough of Sutton,05/09/2022,10008658,88.52, SAINSBURYS.CO.UK,GROCERIES SUTTON,Health and Wellbeing,Provisions,A41006,
http://opendatacommunities.org/id/london-borough-council/sutton,London Borough of Sutton,05/09/2022,10008658,46.94, TESCO STORES 5999,GROCERIES GRANGE,Health and Wellbeing,Provisions,A41006,
http://opendatacommunities.org/id/london-borough-council/sutton,London Borough of Sutton,20/09/2022,10008658,57.83, SAINSBURYS.CO.UK,GROCERIES SUTTON,Health and Wellbeing,Provisions,A41006,
http://opendatacommunities.org/id/london-borough-council/sutton,London Borough of Sutton,20/09/2022,10008658,49.52, TESCO STORES 5999,GROCERIES GRANGE,Health and Wellbeing,Provisions,A41006,
http://opendatacommunities.org/id/london-borough-council/sutton,London Borough of Sutton,20/09/2022,10008658,-0.59, SAINSBURYS.CO.UK,GROCERIES REFUND,Health and Wellbeing,Provisions,A41006,
http://opendatacommunities.org/id/london-borough-council/sutton,London Borough of Sutton,13/09/2022,10008658,100.00, AMAZON.CO.UK J78V43RG5,SPLIT - YOU'RE BRILLIANT (RAINBOW) - AMAZON.CO.UK EGIFT VOUCHER (100%),Health and Wellbeing,Publicity Materials,A43070,
http://opendatacommunities.org/id/london-borough-council/sutton,London Borough of Sutton,31/08/2022,10008658,20.37, FACEBK Y8XPRGPJE2,SOCIAL MEDIA MARKETING,Health and Wellbeing,Publicity Materials,A43070,
http://opendatacommunities.org/id/london-borough-council/sutton,London Borough of Sutton,31/08/2022,10008658,10.03, FACEBK  92YBZGTWG2,SOCIAL MEDIA ADVERTISING,Health and Wellbeing,Publicity Materials,A43070,
http://opendatacommunities.org/id/london-borough-council/sutton,London Borough of Sutton,29/08/2022,10008658,16.37, AMZNMKTPLACE,"SPLIT - 5 PACK,PREMIUM BLACK CLOTH DUCT TAPE HEAVY DUTY WATERPROOF DUCT TAPE FOR REPAIRING, SEALING, LABELING, HOME IMPROVEMENTS JOBS 210MIC X 50MM X 27.4M, (31.54%)",Health and Wellbeing,Equipment And Materials Purchase,A40000,
http://opendatacommunities.org/id/london-borough-council/sutton,London Borough of Sutton,31/08/2022,10008658,20.57, AMZNMKTPLACE,SPLIT - TIME TO SPARKLE PACK OF 50 ORGANZA SASHES 22X280CM WIDER SASH FULLER BOWS CHAIR COVER BOWS SASH FOR WEDDING PARTY BIRTHDAY DECORATION - SILVER CLOUD (100%),Health and Wellbeing,Equipment And Materials Purchase,A40000,
http://opendatacommunities.org/id/london-borough-council/sutton,London Borough of Sutton,31/08/2022,10008658,18.32, AMZNMKTPLACE,SPLIT - YUESHOP 2X7FT ARTIFICIAL WISTERIA VINE GARLAND PLANTS FLOWERS ARTS FOR CEREMONY HOME WEDDING DECORATION (WHITE) (100%),Health and Wellbeing,Equipment And Materials Purchase,A40000,
http://opendatacommunities.org/id/london-borough-council/sutton,London Borough of Sutton,31/08/2022,10008658,8.32, AMZNMKTPLACE,"SPLIT - ARTIFICIAL PEONY FLOWERS, 5 HEADS SILK PEONY PLASTIC FAKE FLOWERS BRIDAL BOUQUET FOR CHRISTMAS WEDDING PARTY HOME DDECORATION (B PINK) (100%)",Health and Wellbeing,Equipment And Materials Purchase,A40000,
http://opendatacommunities.org/id/london-borough-council/sutton,London Borough of Sutton,16/09/2022,10008658,13.31, AMZNBUSINESS OG13B8QO5,"SPLIT - SIGEL HO570 PAPER DESK PAD, WITH MOTIFS FOR COLOURING, A2 (59.5 X 41 CM) DESIGN RELAX, 80GSM, 30 SHEETS (100%)",Health and Wellbeing,Equipment And Materials Purchase,A40000,
http://opendatacommunities.org/id/london-borough-council/sutton,London Borough of Sutton,26/08/2022,10008658,33.08, AMZNMKTPLACE,"SPLIT - EVERBUILD MAMMOTH NON-ADHESIVE AND DURABLE POLYTHENE BARRIER TAPE, SUITABLE FOR CORDONING OFF AREAS - RED-WHITE - 72MM X 500M (100%)",Health and Wellbeing,Equipment And Materials Purchase,A40000,
http://opendatacommunities.org/id/london-borough-council/sutton,London Borough of Sutton,29/08/2022,10008658,5.54, AMZNMKTPLACE,"SPLIT - 50 LARGE MULTI PURPOSE YELLOW DISPOSABLE CLEANING CLOTHS | MADE WITH 30% WOOD PULP |""J CLOTH STYLE."" | 50CM X 34CM | ALSO AVAILABLE IN PACKS OF 100, 2 (10.68%)",Health and Wellbeing,Equipment And Materials Purchase,A40000,
http://opendatacommunities.org/id/london-borough-council/sutton,London Borough of Sutton,29/08/2022,10008658,29.98, AMZNMKTPLACE,SPLIT - 6 PAIRS SAFETY GOGGLES PROTECTIVE SAFETY GLASSES CHEMICAL SPLASH RESISTANT GOGGLE CLEAR ADJUSTABLE GOGGLE FOR HOME LAB WORKPLACE EYE PROTECTION (BLACK (57.78%),Health and Wellbeing,Equipment And Materials Purchase,A40000,
http://opendatacommunities.org/id/london-borough-council/sutton,London Borough of Sutton,29/08/2022,10008658,7.91, AMZNMKTPLACE,"SPLIT - Q-CONNECT RULED STITCH BOUND EXECUTIVE PAD 50 PAGES, A4, WHITE, PACK OF 10 (39.77%)",Health and Wellbeing,Equipment And Materials Purchase,A40000,
http://opendatacommunities.org/id/london-borough-council/sutton,London Borough of Sutton,29/08/2022,10008658,11.97, AMZNMKTPLACE,"SPLIT - FINDER DJ191779P UTILITY KNIFE, SNAP OFF BLADE KNIVES SET WITH 20 PCS BLADE FOR OFFICE HOME ART CRAFTS (60.23%)",Health and Wellbeing,Equipment And Materials Purchase,A40000,
http://opendatacommunities.org/id/london-borough-council/sutton,London Borough of Sutton,29/08/2022,10008658,65.12, AMZNMKTPLACE,"SPLIT - BIBURY MULTI-TOOL, 21 IN 1 MULTITOOLS PLIERS WITH ROPE CUTTER, CAN OPENER, SCREWDRIVER, EDC TOOLS FOR CAMPING, OUTDOOR ACTIVITIES, REPAIRING (SHINY) (100%)",Health and Wellbeing,Equipment And Materials Purchase,A40000,
http://opendatacommunities.org/id/london-borough-council/sutton,London Borough of Sutton,29/08/2022,10008658,20.84, AMZNMKTPLACE,SPLIT - AMAZON BASICS MICROFIBRE CLEANING CLOTHS PACK OF 24 (100%),Health and Wellbeing,Equipment And Materials Purchase,A40000,
http://opendatacommunities.org/id/london-borough-council/sutton,London Borough of Sutton,29/08/2022,10008658,14.90, AMZNMKTPLACE,"SPLIT - KODAK AAA BATTERIES 60 PACK - WITH 10 YEARS SHELF LIFE LONG LASTING ALKALINE POWER TRIPLE A BATTERY PACK, 1.5V MIGNON LR03 MN2400 AM3 TRIPLE A BATTERI (24.15%)",Health and Wellbeing,Equipment And Materials Purchase,A40000,
http://opendatacommunities.org/id/london-borough-council/sutton,London Borough of Sutton,29/08/2022,10008658,25.98, AMZNMKTPLACE,"SPLIT - EMERGENCY RAIN PONCHO ADULT WITH DRAWSTRING HOOD - 6 PACK OF COLOR ASSORTED WATERPROOF THINKER PONCHOS - LIGHTWEIGHT YET STRONG, REUSABLE OR DISPOSABL (42.11%)",Health and Wellbeing,Equipment And Materials Purchase,A40000,
http://opendatacommunities.org/id/london-borough-council/sutton,London Borough of Sutton,29/08/2022,10008658,20.82, AMZNMKTPLACE,"SPLIT - KAYGO HI VIS VESTS 10 PACK,HI VIZ VEST, REFLECTIVE HIGH VISIBILITY SAFETY WAISTCOAT, SILVER STRIPE, FOR MEN AND WOMEN, ONE SIZE (YELLOW) (33.74%)",Health and Wellbeing,Equipment And Materials Purchase,A40000,
http://opendatacommunities.org/id/london-borough-council/sutton,London Borough of Sutton,28/08/2022,10008658,26.60, AMZNMKTPLACE,"SPLIT - VOUNEDA WIND UP TORCH,LED TORCH,WIND UP TORCHES LED SUPER BRIGHT,HAND CRANK & SOLAR EMERGENCY FLASHLIGHT,HAND CRANK FLASHLIGHT SOLAR POWERED EMERGENCY (100%)",Health and Wellbeing,Equipment And Materials Purchase,A40000,
http://opendatacommunities.org/id/london-borough-council/sutton,London Borough of Sutton,03/09/2022,10008658,8.32, SPOTIFY P1D898EEF0,MUSIC FOR WEDDINGS,Health and Wellbeing,Subscriptions,A47010,
http://opendatacommunities.org/id/london-borough-council/sutton,London Borough of Sutton,21/09/2022,10008658,4.17, SAINSBURYS S/MKTS,TISSUES FOR MARRIAGE ROOMS,Health and Wellbeing,Miscellaneous Expenses,A49000,
http://opendatacommunities.org/id/london-borough-council/sutton,London Borough of Sutton,11/09/2022,10008658,35.67, AMZNMKTPLACE AMAZON.CO,"SPLIT - MAGIC LIFE ERGONOMIC OFFICE CHAIR - HIGH BACK DESK CHAIR WITH ADJUSTABLE HEADREST,FLIP-UP ARMRESTS AND LUMBAR SUPPORT COMPUTER CHAIR (BLACK) (91.48%)",Peoples Services,Equipment,A61013,
http://opendatacommunities.org/id/london-borough-council/sutton,London Borough of Sutton,11/09/2022,10008658,3.32, AMZNMKTPLACE AMAZON.CO,BALANCING ENTRY AMOUNT (8.52%),Peoples Services,Equipment,A61013,
http://opendatacommunities.org/id/london-borough-council/sutton,London Borough of Sutton,05/09/2022,10008658,1.43, FIGMA MONTHLY RENEWAL,SOFTWARE FOR DIGITAL DESIGN COMMUNITY,Resources,IT Software Maintenance,A45045,
http://opendatacommunities.org/id/london-borough-council/sutton,London Borough of Sutton,04/09/2022,10008658,52.06, FIGMA MONTHLY RENEWAL,SOFTWARE FOR DIGITAL DESIGN COMMUNITY,Resources,IT Software Maintenance,A45045,
http://opendatacommunities.org/id/london-borough-council/sutton,London Borough of Sutton,01/09/2022,10008658,45.50, DAWSONS,CONSERVATIVE GROUP ROOM KEY CUTTING,Resources,Members Expenses - Other,A46505,
http://opendatacommunities.org/id/london-borough-council/sutton,London Borough of Sutton,14/09/2022,10008658,402.39, MAILCHIMP,MAILCHIMP SUBSCRIPTION,Resources,Publicity,A44266,
http://opendatacommunities.org/id/london-borough-council/sutton,London Borough of Sutton,05/09/2022,10008658,0.31, FACEBK,FACEBOOK FOREIGN EXCHANGE FEE FOR ADVERTISING,Resources,Publicity,A44266,
http://opendatacommunities.org/id/london-borough-council/sutton,London Borough of Sutton,03/09/2022,10008658,11.27, OTTER.AI,MONTHLY SUBSCRIPTION OTTER,Resources,Publicity,A44266,
http://opendatacommunities.org/id/london-borough-council/sutton,London Borough of Sutton,21/09/2022,10008658,317.60, MAILCHIMP,SHP MAILCHIMP SUBSCRITION,Resources,Subscriptions,A47010,
http://opendatacommunities.org/id/london-borough-council/sutton,London Borough of Sutton,09/09/2022,10008658,40.00, FIRST FLOWERS DIRECT L,FLOWERS LAID BY MADAM MAYOR MARKING THE DEATH OF THE QUEEN,Resources,Members Expenses - Other,A46505,
http://opendatacommunities.org/id/london-borough-council/sutton,London Borough of Sutton,09/09/2022,10008658,29.97, WH SMITH,PURCHASE OF THREE BALL POINT PENS TO BE USED FOR THE BOOK OF CONDOLENCE FOR THE QUEEN,Resources,Members Expenses - Other,A46505,
http://opendatacommunities.org/id/london-borough-council/sutton,London Borough of Sutton,09/09/2022,10008658,70.00, WILKO RETAIL LIMITED,PURCHASE OF TEN VASES FOR ROOM WHERE BOOK OF CONDOLENCE WAS HELD,Resources,Members Expenses - Other,A46505,
http://opendatacommunities.org/id/london-borough-council/sutton,London Borough of Sutton,24/09/2022,10008658,20.00, OYSTER BUS AUTOLOAD,CL&G,Resources,"Grants, Contributions & Donations",A47005,
http://opendatacommunities.org/id/london-borough-council/sutton,London Borough of Sutton,23/09/2022,10008658,493.95, ARGOS LTD,CL&G,Resources,"Grants, Contributions & Donations",A47005,
http://opendatacommunities.org/id/london-borough-council/sutton,London Borough of Sutton,22/09/2022,10008658,55.08, PAYPAL  DIGITALINSP,CL&G,Resources,"Grants, Contributions & Donations",A47005,
http://opendatacommunities.org/id/london-borough-council/sutton,London Borough of Sutton,20/09/2022,10008658,268.95, ARGOS LTD,CL&G,Resources,"Grants, Contributions & Donations",A47005,
http://opendatacommunities.org/id/london-borough-council/sutton,London Borough of Sutton,20/09/2022,10008658,268.95, ARGOS LTD,CL&G,Resources,"Grants, Contributions & Donations",A47005,
http://opendatacommunities.org/id/london-borough-council/sutton,London Borough of Sutton,16/09/2022,10008658,210.00, ARGOS LTD,CL&G,Resources,"Grants, Contributions & Donations",A47005,
http://opendatacommunities.org/id/london-borough-council/sutton,London Borough of Sutton,15/09/2022,10008658,53.91, PAYPAL  DIGITALINSP,CL&G,Resources,"Grants, Contributions & Donations",A47005,
http://opendatacommunities.org/id/london-borough-council/sutton,London Borough of Sutton,14/09/2022,10008658,171.95, ARGOS LTD,CL&G,Resources,"Grants, Contributions & Donations",A47005,
http://opendatacommunities.org/id/london-borough-council/sutton,London Borough of Sutton,14/09/2022,10008658,340.95, ARGOS LTD,CL&G,Resources,"Grants, Contributions & Donations",A47005,
http://opendatacommunities.org/id/london-borough-council/sutton,London Borough of Sutton,14/09/2022,10008658,249.91, CURRYS ONLINE,CL&G,Resources,"Grants, Contributions & Donations",A47005,
http://opendatacommunities.org/id/london-borough-council/sutton,London Borough of Sutton,13/09/2022,10008658,434.99, ARGOS LTD,CL&G,Resources,"Grants, Contributions & Donations",A47005,
http://opendatacommunities.org/id/london-borough-council/sutton,London Borough of Sutton,13/09/2022,10008658,593.95, ARGOS LTD,CL&G,Resources,"Grants, Contributions & Donations",A47005,
http://opendatacommunities.org/id/london-borough-council/sutton,London Borough of Sutton,13/09/2022,10008658,243.95, ARGOS LTD,CL&G,Resources,"Grants, Contributions & Donations",A47005,
http://opendatacommunities.org/id/london-borough-council/sutton,London Borough of Sutton,13/09/2022,10008658,249.00, CURRYS ONLINE,CL&G,Resources,"Grants, Contributions & Donations",A47005,
http://opendatacommunities.org/id/london-borough-council/sutton,London Borough of Sutton,13/09/2022,10008658,"11,250.00", CS MORRISONS GIFT CARD,CL&G,Resources,"Grants, Contributions & Donations",A47005,
http://opendatacommunities.org/id/london-borough-council/sutton,London Borough of Sutton,12/09/2022,10008658,525.00, ARGOS LTD,CL&G,Resources,"Grants, Contributions & Donations",A47005,
http://opendatacommunities.org/id/london-borough-council/sutton,London Borough of Sutton,12/09/2022,10008658,171.95, ARGOS LTD,CL&G,Resources,"Grants, Contributions & Donations",A47005,
http://opendatacommunities.org/id/london-borough-council/sutton,London Borough of Sutton,12/09/2022,10008658,171.95, ARGOS LTD,CL&G,Resources,"Grants, Contributions & Donations",A47005,
http://opendatacommunities.org/id/london-borough-council/sutton,London Borough of Sutton,12/09/2022,10008658,171.95, ARGOS LTD,CL&G,Resources,"Grants, Contributions & Donations",A47005,
http://opendatacommunities.org/id/london-borough-council/sutton,London Borough of Sutton,12/09/2022,10008658,210.00, ARGOS LTD,CL&G,Resources,"Grants, Contributions & Donations",A47005,
http://opendatacommunities.org/id/london-borough-council/sutton,London Borough of Sutton,12/09/2022,10008658,210.00, ARGOS LTD,CL&G,Resources,"Grants, Contributions & Donations",A47005,
http://opendatacommunities.org/id/london-borough-council/sutton,London Borough of Sutton,12/09/2022,10008658,-210.00, ARGOS LTD,CL&G,Resources,"Grants, Contributions & Donations",A47005,
http://opendatacommunities.org/id/london-borough-council/sutton,London Borough of Sutton,12/09/2022,10008658,-171.95, ARGOS LTD,CL&G,Resources,"Grants, Contributions & Donations",A47005,
http://opendatacommunities.org/id/london-borough-council/sutton,London Borough of Sutton,11/09/2022,10008658,20.00, OYSTER BUS AUTOLOAD,CL&G,Resources,"Grants, Contributions & Donations",A47005,
http://opendatacommunities.org/id/london-borough-council/sutton,London Borough of Sutton,09/09/2022,10008658,20.00, TFL OYSTER AUTO TOPUP,CL&G,Resources,"Grants, Contributions & Donations",A47005,
http://opendatacommunities.org/id/london-borough-council/sutton,London Borough of Sutton,08/09/2022,10008658,222.95, ARGOS LTD,CL&G,Resources,"Grants, Contributions & Donations",A47005,
http://opendatacommunities.org/id/london-borough-council/sutton,London Borough of Sutton,07/09/2022,10008658,203.95, ARGOS LTD,CL&G,Resources,"Grants, Contributions & Donations",A47005,
http://opendatacommunities.org/id/london-borough-council/sutton,London Borough of Sutton,07/09/2022,10008658,143.95, ARGOS LTD,CL&G,Resources,"Grants, Contributions & Donations",A47005,
http://opendatacommunities.org/id/london-borough-council/sutton,London Borough of Sutton,06/09/2022,10008658,246.95, ARGOS LTD,CL&G,Resources,"Grants, Contributions & Donations",A47005,
http://opendatacommunities.org/id/london-borough-council/sutton,London Borough of Sutton,06/09/2022,10008658,287.95, ARGOS LTD,CL&G,Resources,"Grants, Contributions & Donations",A47005,
http://opendatacommunities.org/id/london-borough-council/sutton,London Borough of Sutton,02/09/2022,10008658,287.95, ARGOS LTD,CL&G,Resources,"Grants, Contributions & Donations",A47005,
http://opendatacommunities.org/id/london-borough-council/sutton,London Borough of Sutton,30/08/2022,10008658,248.95, ARGOS LTD,CL&G,Resources,"Grants, Contributions & Donations",A47005,
http://opendatacommunities.org/id/london-borough-council/sutton,London Borough of Sutton,30/08/2022,10008658,235.00, ARGOS LTD,CL&G,Resources,"Grants, Contributions & Donations",A47005,
http://opendatacommunities.org/id/london-borough-council/sutton,London Borough of Sutton,30/08/2022,10008658,290.00, ARGOS LTD,CL&G,Resources,"Grants, Contributions & Donations",A47005,
http://opendatacommunities.org/id/london-borough-council/sutton,London Borough of Sutton,29/08/2022,10008658,-12.95, ARGOS LTD,CL&G,Resources,"Grants, Contributions & Donations",A47005,
http://opendatacommunities.org/id/london-borough-council/sutton,London Borough of Sutton,26/08/2022,10008658,99.95, ARGOS LTD,CL&G,Resources,"Grants, Contributions & Donations",A47005,
http://opendatacommunities.org/id/london-borough-council/sutton,London Borough of Sutton,25/08/2022,10008658,541.95, ARGOS LTD,CL&G,Resources,"Grants, Contributions & Donations",A47005,
http://opendatacommunities.org/id/london-borough-council/sutton,London Borough of Sutton,25/08/2022,10008658,241.95, ARGOS LTD,CL&G,Resources,"Grants, Contributions & Donations",A47005,
http://opendatacommunities.org/id/london-borough-council/sutton,London Borough of Sutton,25/08/2022,10008658,91.95, ARGOS LTD,CL&G,Resources,"Grants, Contributions & Donations",A47005,
http://opendatacommunities.org/id/london-borough-council/sutton,London Borough of Sutton,24/08/2022,10008658,530.00, ARGOS LTD,CL&G,Resources,"Grants, Contributions & Donations",A47005,
http://opendatacommunities.org/id/london-borough-council/sutton,London Borough of Sutton,25/09/2022,10008658,301.00, PEGASUS,NOT MY PURCHASE SO BEING INVESTIGATED BY LLOYDS FRAUD TEAM.,Resources,Contingency,A49001,
http://opendatacommunities.org/id/london-borough-council/sutton,London Borough of Sutton,19/09/2022,10008658,100.98, AMZNMKTPLACE AMAZON.CO,FRAMES FOR LADIES TOILETS AS REQUESTED BY WOMENS NETWORK,Resources,Contingency,A49001,
http://opendatacommunities.org/id/london-borough-council/sutton,London Borough of Sutton,15/09/2022,10008658,5.75, AMZNMKTPLACE,SOCKET TESTER FOR LONDON CANCER HUB INNOVATION GATEWAY.  TO BE RECHARGED TO E46420.,Resources,Contingency,A49001,
http://opendatacommunities.org/id/london-borough-council/sutton,London Borough of Sutton,12/09/2022,10008658,35.54, THE FLAG SHOP LTD,NEW UNION FLAG FOR TRINITY SQUARE ,Resources,Contingency,A49001,
http://opendatacommunities.org/id/london-borough-council/sutton,London Borough of Sutton,09/09/2022,10008658,53.50, HOUSE OF FLAGS,NEW UNION FLAG REQUIRED FOR WALLINGTON TOWN HALL,Resources,Contingency,A49001,
http://opendatacommunities.org/id/london-borough-council/sutton,London Borough of Sutton,01/09/2022,10008658,31.49, AMZNMKTPLACE,BISCUITS REQUIRED FOR LONDON CANCER HUB INNOVATION GATEWAY ,Resources,Contingency,A49001,
http://opendatacommunities.org/id/london-borough-council/sutton,London Borough of Sutton,20/09/2022,10008658,14.00, GEN REGISTER OFFICE,125053 - VOUSDEN DEATH CERTIFICATE ORDER,Resources,Legal Services,A44025,
http://opendatacommunities.org/id/london-borough-council/sutton,London Borough of Sutton,08/09/2022,10008658,27.00, OYSTER ONLINE,PURCHASE OF OYSTER CARD AND TOP UP,Environment Housing and Neighbourhoods,Non-Staff Travel Subsistence & Training,A46006,
http://opendatacommunities.org/id/london-borough-council/sutton,London Borough of Sutton,26/08/2022,10008658,400.00, FURNITURE WAREHOUSE,AFGHAN RESETTLEMENT SCHEME,Environment Housing and Neighbourhoods,Other Supplies & Services,A44291,
http://opendatacommunities.org/id/london-borough-council/sutton,London Borough of Sutton,09/09/2022,10008658,4.24, ALVINA DISCOUNT STORES,PURCHASE OF TAPE AND SMALL SAW TO ASSIST WITH INSTALLATION OF MEMORIAL AREAS FOR FLOWERS FOR QUEENS FUNERAL,Environment Housing and Neighbourhoods,Equipment And Materials Repairs & Maintenance,A40051,
http://opendatacommunities.org/id/london-borough-council/sutton,London Borough of Sutton,09/09/2022,10008658,5.50, MELVYN CLARKE,PURCHASE OF HACKSAW TO CUT ROPE WHILST SETTING UP MEMORIAL AREAS FOR FLOWERS,Environment Housing and Neighbourhoods,Equipment And Materials Repairs & Maintenance,A40051,
http://opendatacommunities.org/id/london-borough-council/sutton,London Borough of Sutton,19/09/2022,10008658,14.36, AMZNMKTPLACE,SPLIT - WOSO SCALP MASSAGER?4PCS HEAD MASSAGER SCALP SPA SCALP MASSAGER HEAD MASSAGE CLAWS?MUSCLE RELAXATION PROMOTE BLOOD CIRCULATION OFFICE DECOMPRESSION (P (100%),Peoples Services,Equipment And Materials Purchase,A40000,
http://opendatacommunities.org/id/london-borough-council/sutton,London Borough of Sutton,19/09/2022,10008658,20.97, AMZNMKTPLACE,"SPLIT - SALT SPA CO BATH SALTS | EPSOM SALT WITH LAVENDER AND CHAMOMILE ESSENTIAL OILS, TO HELP RELAX MUSCLES AND RELIEVE STRESS | 1KG | DEEP SLEEP EPSOM SALT (29.03%)",Peoples Services,Equipment And Materials Purchase,A40000,
http://opendatacommunities.org/id/london-borough-council/sutton,London Borough of Sutton,19/09/2022,10008658,51.27, AMZNMKTPLACE,SPLIT - 20 PACKS STEAM EYE MASK WARMING EYE MASK SELF HEATING EYE MASK SLEEP MASK HEATED EYE MASK FOR DRY EYES FATIGUE DISPOSABLE MOIST HOT COMPRESS EYE PATCH (70.97%),Peoples Services,Equipment And Materials Purchase,A40000,
http://opendatacommunities.org/id/london-borough-council/sutton,London Borough of Sutton,19/09/2022,10008658,32.31, AMZNMKTPLACE,SPLIT - WOSO SCALP MASSAGER?4PCS HEAD MASSAGER SCALP SPA SCALP MASSAGER HEAD MASSAGE CLAWS?MUSCLE RELAXATION PROMOTE BLOOD CIRCULATION OFFICE DECOMPRESSION (P (100%),Peoples Services,Equipment And Materials Purchase,A40000,
http://opendatacommunities.org/id/london-borough-council/sutton,London Borough of Sutton,19/09/2022,10008658,55.96, AMZNMKTPLACE,"SPLIT - MUDEELA BAMBOO SUSHI ROLLING MAT, CARBONIZED SUSHI MAKING KIT 9 PCS, BEGINNER SUSHI MAT, INCLUDES 2 ROLLING MATS, 5 PAIRS CHOPSTICKS, PADDLE, SPREADER (100%)",Peoples Services,Equipment And Materials Purchase,A40000,
http://opendatacommunities.org/id/london-borough-council/sutton,London Borough of Sutton,16/09/2022,10008658,5.99, AMZNMKTPLACE,SPLIT - 10B PLASTIC SHOT GLASSES | PACK OF 60 | DURABLE HARD PLASTIC | REUSABLE SHOT GLASSES | MULTI USAGE PLASTIC CUPS | CRYSTAL CLEAR | 30 ML-1OZ (100%),Peoples Services,Equipment And Materials Purchase,A40000,
http://opendatacommunities.org/id/london-borough-council/sutton,London Borough of Sutton,16/09/2022,10008658,41.97, AMZNMKTPLACE,SPLIT - KASYAT 20 PIECES MOTIVATIONAL STRESS BALLS COLORFUL FOAM BALLS QUOTES STRESS BALL PACK INSPIRATIONAL STRESS RELIEF BALLS ANXIETY SMALL BALLS FOR RELIE (100%),Peoples Services,Equipment And Materials Purchase,A40000,
http://opendatacommunities.org/id/london-borough-council/sutton,London Borough of Sutton,16/09/2022,10008658,4.99, AMZNMKTPLACE,"SPLIT - 100PCS WHITE ORGANZA BAGS SMALL,8X10CM SMALL NET BAGS DRAWSTRING LITTLE MESH BAGS FOR GIFTS JEWELRY WEDDING FAVOUR CHRISTMAS (33.33%)",Peoples Services,Equipment And Materials Purchase,A40000,
http://opendatacommunities.org/id/london-borough-council/sutton,London Borough of Sutton,16/09/2022,10008658,9.98, AMZNMKTPLACE,"SPLIT - SMALL BAGS - BROWN PAPER BAGS WITH FLAT HANDLES, 50 PACK - H22 � W18 � D9CM | MERRIMEN (66.67%)",Peoples Services,Equipment And Materials Purchase,A40000,
http://opendatacommunities.org/id/london-borough-council/sutton,London Borough of Sutton,20/09/2022,10008658,12.50, ARGOS LTD,ITEMS NEEDED FOR A YOUNG PERSON,Peoples Services,Miscellaneous Expenses,A49000,
http://opendatacommunities.org/id/london-borough-council/sutton,London Borough of Sutton,12/09/2022,10008658,37.00, MADAME TUSSAUDS LONDON,MADAME TUSSAUDS TICKETS PAYMENT,Peoples Services,Client Care/Assistance,A61011,
http://opendatacommunities.org/id/london-borough-council/sutton,London Borough of Sutton,23/09/2022,10008658,291.67, ARGOS LTD,SET UP ALLOWANCE,Peoples Services,Set Up Costs - Children Leaving Care,A61021,
http://opendatacommunities.org/id/london-borough-council/sutton,London Borough of Sutton,21/09/2022,10008658,395.72, STRICTLYBEDSANDBUN,NEEDED FOR A YOUNG PERSON,Peoples Services,Miscellaneous Expenses,A49000,
http://opendatacommunities.org/id/london-borough-council/sutton,London Borough of Sutton,21/09/2022,10008658,15.79, HOLLYWOOD BOWL,ACTIVITY NEEDED FOR A YOUNG PERSON,Peoples Services,Miscellaneous Expenses,A49000,
http://opendatacommunities.org/id/london-borough-council/sutton,London Borough of Sutton,31/08/2022,10008658,24.09, TENPIN.CO.UK,BOWLING,Peoples Services,Miscellaneous Expenses,A49000,
http://opendatacommunities.org/id/london-borough-council/sutton,London Borough of Sutton,08/09/2022,10008658,37.49, CROCSEU,ITEM NEEDED FOR A YOUNG PERSON,Peoples Services,Miscellaneous Expenses,A49000,
http://opendatacommunities.org/id/london-borough-council/sutton,London Borough of Sutton,16/09/2022,10008658,18.37, TENPIN.CO.UK,ACTIVITY FOR A YOUNG PERSON,Peoples Services,Miscellaneous Expenses,A49000,
http://opendatacommunities.org/id/london-borough-council/sutton,London Borough of Sutton,16/09/2022,10008658,15.79, HOLLYWOOD BOWL,ACTIVITY FOR A YOUNG PERSON,Peoples Services,Miscellaneous Expenses,A49000,
http://opendatacommunities.org/id/london-borough-council/sutton,London Borough of Sutton,03/09/2022,10008658,84.99, HOLIDAY INNS,HOTEL BOOKING,Peoples Services,Approved Lodgings,A61000,
http://opendatacommunities.org/id/london-borough-council/sutton,London Borough of Sutton,12/09/2022,10008658,18.80, WWW.WIGHTLINK.CO.UK,FERRY TRIP,Peoples Services,C.C.A Travel & Subsistance,A61010,
http://opendatacommunities.org/id/london-borough-council/sutton,London Borough of Sutton,30/08/2022,10008658,6.04, MCDONALDS,AK ACTIVITY,Peoples Services,Asylum Seekers,A61002,
http://opendatacommunities.org/id/london-borough-council/sutton,London Borough of Sutton,30/08/2022,10008658,20.82, H & M,AK CLOTHING,Peoples Services,Asylum Seekers,A61002,
http://opendatacommunities.org/id/london-borough-council/sutton,London Borough of Sutton,30/08/2022,10008658,65.18, SPORTSDIRECT.COM,AK CLOTHING,Peoples Services,Asylum Seekers,A61002,
http://opendatacommunities.org/id/london-borough-council/sutton,London Borough of Sutton,30/08/2022,10008658,23.47, WH SMITH,AK SCHOOL,Peoples Services,Asylum Seekers,A61002,
http://opendatacommunities.org/id/london-borough-council/sutton,London Borough of Sutton,30/08/2022,10008658,23.00, JD SPORTS 608,AK CLOTHING,Peoples Services,Asylum Seekers,A61002,
http://opendatacommunities.org/id/london-borough-council/sutton,London Borough of Sutton,01/09/2022,10008658,113.73, METROPOLITAN HOUSING,MKM HOUSING RENT,Peoples Services,Set Up Costs - Children Leaving Care,A61021,
http://opendatacommunities.org/id/london-borough-council/sutton,London Borough of Sutton,12/09/2022,10008658,"2,836.00", OFSTED INTERNET,OFSTED PAYMENT,Peoples Services,Registration & Licence Fees Payable,A44267,
http://opendatacommunities.org/id/london-borough-council/sutton,London Borough of Sutton,19/09/2022,10008658,7.28, AMZNMKTPLACE AMAZON.CO,ITEM NEEDED FOR THE WILLOW RISE CHILDRENS HOME (100%),Peoples Services,Miscellaneous Expenses,A49000,
http://opendatacommunities.org/id/london-borough-council/sutton,London Borough of Sutton,19/09/2022,10008658,5.99, AMZNMKTPLACE,ITEM NEEDED FOR THE WILLOW RISE CHILDRENS HOME (100%),Peoples Services,Miscellaneous Expenses,A49000,
http://opendatacommunities.org/id/london-borough-council/sutton,London Borough of Sutton,19/09/2022,10008658,9.98, AMZNMKTPLACE,ITEM NEEDED FOR THE WILLOW RISE CHILDRENS HOME (100%),Peoples Services,Miscellaneous Expenses,A49000,
http://opendatacommunities.org/id/london-borough-council/sutton,London Borough of Sutton,19/09/2022,10008658,28.99, AMZNBUSINESS DD7S02MI5,ITEM NEEDED FOR THE WILLOW RISE CHILDRENS HOME (100%),Peoples Services,Miscellaneous Expenses,A49000,
http://opendatacommunities.org/id/london-borough-council/sutton,London Borough of Sutton,19/09/2022,10008658,28.99, AMZNBUSINESS EL2CU9DT5,ITEM NEEDED FOR THE WILLOW RISE CHILDRENS HOME (100%),Peoples Services,Miscellaneous Expenses,A49000,
http://opendatacommunities.org/id/london-borough-council/sutton,London Borough of Sutton,06/09/2022,10008658,8.33, TRANSPORT FOR LONDON,LOST OYSTER CARD PAYMENT FOR A YOUNG PERSON AT WILLOW RISE,Peoples Services,Miscellaneous Expenses,A49000,
http://opendatacommunities.org/id/london-borough-council/sutton,London Borough of Sutton,16/09/2022,10008658,89.97, AMZNMKTPLACE,ITEM NEEDED FOR THE WILLOW RISE CHILDRENS HOME (100%),Peoples Services,Miscellaneous Expenses,A49000,
http://opendatacommunities.org/id/london-borough-council/sutton,London Borough of Sutton,15/09/2022,10008658,60.79, ARGOS LTD,ITEMS NEEDED FOR YOUNG PERSON,Peoples Services,Miscellaneous Expenses,A49000,
http://opendatacommunities.org/id/london-borough-council/sutton,London Borough of Sutton,11/09/2022,10008658,9.20, AMZNMKTPLACE AMAZON.CO,"SPLIT - PONMOO BLUE BIRTHDAY PARTY DECORATION BALLOONS 112PCS, HAPPY BIRTHDAY BANNER SILVER PARTY DECOR BIRTHDAY SET FOR MEN WOMEN PARTY SUPPLIES BALLOONS GAR (100%)",Peoples Services,Miscellaneous Expenses,A49000,
http://opendatacommunities.org/id/london-borough-council/sutton,London Borough of Sutton,10/09/2022,10008658,3.47, AMZNMKTPLACE AMAZON.CO,SPLIT - PERSONALISED BIRTHDAY CAKE TOPPER CUSTOMIZED ANY WORD NAME AGE PARTY CAKE DECORATION DOUBLE SIDED GLITTER CARD 1ST 10TH 16TH 18TH 20TH 21ST 30TH 40TH (83.53%),Peoples Services,Miscellaneous Expenses,A49000,
http://opendatacommunities.org/id/london-borough-council/sutton,London Borough of Sutton,10/09/2022,10008658,0.67, AMZNMKTPLACE AMAZON.CO,BALANCING ENTRY AMOUNT (16.47%),Peoples Services,Miscellaneous Expenses,A49000,
http://opendatacommunities.org/id/london-borough-council/sutton,London Borough of Sutton,04/09/2022,10008658,29.99, AMZNMKTPLACE,ITEMS NEEDED FOR WILLOW RISE CHILDRENS HOME (100%),Peoples Services,Miscellaneous Expenses,A49000,
http://opendatacommunities.org/id/london-borough-council/sutton,London Borough of Sutton,01/09/2022,10008658,33.22, ASDA GROCERIES ONLINE,WILLOW RISE FOOD SHOPPING,Peoples Services,Miscellaneous Expenses,A49000,
http://opendatacommunities.org/id/london-borough-council/sutton,London Borough of Sutton,31/08/2022,10008658,10.27, AMZNMKTPLACE,ITEM NEEDED FOR WILLOW RISE CHILDRENS HOME (100%),Peoples Services,Miscellaneous Expenses,A49000,
http://opendatacommunities.org/id/london-borough-council/sutton,London Borough of Sutton,31/08/2022,10008658,73.42, AMZNBUSINESS VU8SV48E5,ITEM FOR A YOUNG PERSON AT WILLOW RISE CHILDRENS HOME (100%),Peoples Services,Miscellaneous Expenses,A49000,
http://opendatacommunities.org/id/london-borough-council/sutton,London Borough of Sutton,31/08/2022,10008658,24.96, AMZNMKTPLACE,ITEMS NEEDED FOR WILLOW RISE CHILDRENS HOME (100%),Peoples Services,Miscellaneous Expenses,A49000,
http://opendatacommunities.org/id/london-borough-council/sutton,London Borough of Sutton,31/08/2022,10008658,14.94, AMZNMKTPLACE,ITEMS NEEDED FOR WILLOW RISE CHILDRENS HOME (100%),Peoples Services,Miscellaneous Expenses,A49000,
http://opendatacommunities.org/id/london-borough-council/sutton,London Borough of Sutton,31/08/2022,10008658,15.98, AMZNMKTPLACE,ITEMS NEEDED FOR WILLOW RISE CHILDRENS HOME (100%),Peoples Services,Miscellaneous Expenses,A49000,
http://opendatacommunities.org/id/london-borough-council/sutton,London Borough of Sutton,31/08/2022,10008658,2.00, AMZNMKTPLACE,ITEMS NEEDED FOR WILLOW RISE CHILDRENS HOME (100%),Peoples Services,Miscellaneous Expenses,A49000,
http://opendatacommunities.org/id/london-borough-council/sutton,London Borough of Sutton,20/09/2022,10008658,7.90, AMZNBUSINESS DF2DG1345,ITEM NEEDED FOR THE WILLOW RISE CHILDRENS HOME (100%),Peoples Services,Miscellaneous Expenses,A49000,
http://opendatacommunities.org/id/london-borough-council/sutton,London Borough of Sutton,08/09/2022,10008658,11.66, AMZNMKTPLACE,SPLIT - DURONIC DIGITAL KITCHEN SCALES KS6000 BK/CR | BLACK DESIGN WITH 2L CLEAR BOWL | 5KG CAPACITY | LCD BACKLIT DISPLAY | ADD & WEIGH TARE | 1G PRECISION | (100%),Peoples Services,Miscellaneous Expenses,A49000,
http://opendatacommunities.org/id/london-borough-council/sutton,London Borough of Sutton,08/09/2022,10008658,5.82, AMZNMKTPLACE,SPLIT - 100 PCS A4 PUNCHED POCKETS 10-15 SHEETS 30 MICRON FOR FOLDERS PLASTIC PUNCH POCKETS FILING WALLETS SLEEVES (100%),Peoples Services,Miscellaneous Expenses,A49000,
http://opendatacommunities.org/id/london-borough-council/sutton,London Borough of Sutton,31/08/2022,10008658,24.96, AMZNMKTPLACE,ITEM NEEDED FOR THE WILLOW RISE CHILDRENS HOME (100%),Peoples Services,Miscellaneous Expenses,A49000,
http://opendatacommunities.org/id/london-borough-council/sutton,London Borough of Sutton,30/08/2022,10008658,27.04, AMZNMKTPLACE,ITEMS NEEDED FOR WILLOW RISE CHILDRENS HOME (100%),Peoples Services,Miscellaneous Expenses,A49000,
http://opendatacommunities.org/id/london-borough-council/sutton,London Borough of Sutton,30/08/2022,10008658,8.60, AMZNMKTPLACE,ITEMS NEEDED FOR WILLOW RISE CHILDRENS HOME (100%),Peoples Services,Miscellaneous Expenses,A49000,
http://opendatacommunities.org/id/london-borough-council/sutton,London Borough of Sutton,06/09/2022,10008658,132.50, TVLICENSING.CO.UK,TV LICENSE NEEDED FOR HOMES UNDER CARE,Peoples Services,Miscellaneous Expenses,A49000,
http://opendatacommunities.org/id/london-borough-council/sutton,London Borough of Sutton,06/09/2022,10008658,132.50, TVLICENSING.CO.UK,TV LICENSE NEEDED FOR HOMES UNDER CARE,Peoples Services,Miscellaneous Expenses,A49000,
http://opendatacommunities.org/id/london-borough-council/sutton,London Borough of Sutton,06/09/2022,10008658,132.50, TVLICENSING.CO.UK,TV LICENSE NEEDED FOR HOMES UNDER CARE,Peoples Services,Miscellaneous Expenses,A49000,
http://opendatacommunities.org/id/london-borough-council/sutton,London Borough of Sutton,06/09/2022,10008658,132.50, TVLICENSING.CO.UK,TV LICENSE NEEDED FOR HOMES UNDER CARE,Peoples Services,Miscellaneous Expenses,A49000,
http://opendatacommunities.org/id/london-borough-council/sutton,London Borough of Sutton,06/09/2022,10008658,132.50, TVLICENSING.CO.UK,TV LICENSE NEEDED FOR HOMES UNDER CARE,Peoples Services,Miscellaneous Expenses,A49000,
http://opendatacommunities.org/id/london-borough-council/sutton,London Borough of Sutton,06/09/2022,10008658,132.50, TVLICENSING.CO.UK,TV LICENSE NEEDED FOR HOMES UNDER CARE,Peoples Services,Miscellaneous Expenses,A49000,
http://opendatacommunities.org/id/london-borough-council/sutton,London Borough of Sutton,06/09/2022,10008658,433.33, TOOTING CARPETS,ITEMS NEEDED FOR A YOUNG PERSON,Peoples Services,Set Up Costs - Children Leaving Care,A61021,
http://opendatacommunities.org/id/london-borough-council/sutton,London Borough of Sutton,02/09/2022,10008658,798.33, CURRYS ONLINE,ITEMS NEEDED FOR A YOUNG PERSON,Peoples Services,Set Up Costs - Children Leaving Care,A61021,
http://opendatacommunities.org/id/london-borough-council/sutton,London Borough of Sutton,30/08/2022,10008658,159.90, ZOOM.US 888-799-9666,SUBSCRIPTION REQUIRED FOR A TEAM MEETING,Peoples Services,Subscriptions,A47010,
http://opendatacommunities.org/id/london-borough-council/sutton,London Borough of Sutton,17/09/2022,10008658,159.90, ZOOM.US 888-799-9666,SUBSCRIPTION NEEDED,Peoples Services,Subscriptions,A47010,
http://opendatacommunities.org/id/london-borough-council/sutton,London Borough of Sutton,31/08/2022,10008658,18.80, WWW.WIGHTLINK.CO.UK,FERRY PAYMENT FOR SOCIAL WORKER,Peoples Services,C.C.A Travel & Subsistance,A61010,
http://opendatacommunities.org/id/london-borough-council/sutton,London Borough of Sutton,23/09/2022,10008658,"3,199.00", C2E830200823N UKVI,OVERSEAS TRANSACTION,Peoples Services,Client Care/Assistance,A61011,
http://opendatacommunities.org/id/london-borough-council/sutton,London Borough of Sutton,01/09/2022,10008658,92.50, PREMIER INN,HOTEL STAY,Peoples Services,Client Care/Assistance,A61011,
http://opendatacommunities.org/id/london-borough-council/sutton,London Borough of Sutton,12/09/2022,10008658,33.29, BLUE FLORIST,THANK YOU FLOWERS FOR CORPORATE PARENTING FORUM MEMBER ,Peoples Services,Foster Parents Support,A44110,
http://opendatacommunities.org/id/london-borough-council/sutton,London Borough of Sutton,26/08/2022,10008658,50.00, FACEBK  53YKEF7H32,FACEBOOK ADVERTISING FOR FOSTERING RECRUITMENT,Peoples Services,Miscellaneous Expenses,A49000,
http://opendatacommunities.org/id/london-borough-council/sutton,London Borough of Sutton,07/09/2022,10008658,48.98, AMZNMKTPLACE,ITEM NEEDED FOR A TEAM (100%),Peoples Services,Miscellaneous Expenses,A49000,
http://opendatacommunities.org/id/london-borough-council/sutton,London Borough of Sutton,21/09/2022,10008658,512.45, ARGOS LTD,ITEMS NEEDED FOR NEW PROPERTY,Peoples Services,Miscellaneous Expenses,A49000,
http://opendatacommunities.org/id/london-borough-council/sutton,London Borough of Sutton,21/09/2022,10008658,200.00, ARGOS LTD,ITEMS NEEDED FOR NEW PROPERTY,Peoples Services,Miscellaneous Expenses,A49000,
http://opendatacommunities.org/id/london-borough-council/sutton,London Borough of Sutton,21/09/2022,10008658,"2,397.29", IKEA LTD SHOP ONLINE,ITEMS NEEDED FOR NEW PROPERTY,Peoples Services,Miscellaneous Expenses,A49000,
http://opendatacommunities.org/id/london-borough-council/sutton,London Borough of Sutton,21/09/2022,10008658,-512.45, ARGOS LTD,ITEMS NO LONGER NEEDED FOR THE HOME,Peoples Services,Miscellaneous Expenses,A49000,
http://opendatacommunities.org/id/london-borough-council/sutton,London Borough of Sutton,22/09/2022,10008658,266.67, ARGOS LTD,ITEMS NEEDED FOR NEW PROPERTY,Peoples Services,Miscellaneous Expenses,A49000,
http://opendatacommunities.org/id/london-borough-council/sutton,London Borough of Sutton,07/09/2022,10008658,6.49, AMZNMKTPLACE,ITEM FOR SUTTON FAMILY CENTRE (100%),Peoples Services,Miscellaneous Expenses,A49000,
http://opendatacommunities.org/id/london-borough-council/sutton,London Borough of Sutton,23/09/2022,10008658,36.99, AMAZON.CO.UK L34U62RI5,TUULI ADJEI - REFLECTIVE PRACTICE CARDS: PROMPT CARDS FOR SOCIAL WORKERS (AMAZON ORDER),Peoples Services,Staff Development And Training,A15022,
http://opendatacommunities.org/id/london-borough-council/sutton,London Borough of Sutton,08/09/2022,10008658,150.00, WANDSWORTH COUNCIL,,Peoples Services,Staff Development And Training,A15022,
http://opendatacommunities.org/id/london-borough-council/sutton,London Borough of Sutton,08/09/2022,10008658,"1,390.00", OXFORD BROOKES UNI, CERTIFICATE IN COMMISSIONING AND PURCHASING FOR PUBLIC CARE COURSE OCTOBER 2022,Peoples Services,Staff Development And Training,A15022,
http://opendatacommunities.org/id/london-borough-council/sutton,London Borough of Sutton,16/09/2022,10008658,27.50, SUTTON REGISTER OFFICE,BIRTH CERT FOR A LEADING PROCEEDING,Peoples Services,Equipment And Materials Purchase,A40000,
http://opendatacommunities.org/id/london-borough-council/sutton,London Borough of Sutton,21/09/2022,10008658,45.50, WILKO RETAIL LIMITED,BLACK HISTORY MONTH EXPENDITURE,Peoples Services,Miscellaneous Expenses,A49000,
http://opendatacommunities.org/id/london-borough-council/sutton,London Borough of Sutton,23/09/2022,10008658,11.40, AMZNMKTPLACE,BLACK HISTORY MONTH (100%),Peoples Services,Miscellaneous Expenses,A49000,
http://opendatacommunities.org/id/london-borough-council/sutton,London Borough of Sutton,22/09/2022,10008658,10.50, AMZNMKTPLACE,BLACK HISTORY MONTH (43.21%),Peoples Services,Miscellaneous Expenses,A49000,
http://opendatacommunities.org/id/london-borough-council/sutton,London Borough of Sutton,22/09/2022,10008658,13.80, AMZNMKTPLACE,SPLIT - GOLD ROUND PAPER PLATES PACK OF 15(9') (56.79%),Peoples Services,Miscellaneous Expenses,A49000,
http://opendatacommunities.org/id/london-borough-council/sutton,London Borough of Sutton,05/09/2022,10008658,658.28, WESTJET AIRLINES,FLIGHTS NEEDED FOR AN OVERSEAS SOCIAL WORKER,Peoples Services,C.C.A Travel & Subsistance,A61010,
http://opendatacommunities.org/id/london-borough-council/sutton,London Borough of Sutton,07/09/2022,10008658,-18.16, FOREIGN EXCHANGE,FOREIGN EXCHANGE,Peoples Services,C.C.A Travel & Subsistance,A61010,
http://opendatacommunities.org/id/london-borough-council/sutton,London Borough of Sutton,07/09/2022,10008658,18.10, FOREIGN EXCHANGE,FOREIGN EXCHANGE,Peoples Services,C.C.A Travel & Subsistance,A61010,
http://opendatacommunities.org/id/london-borough-council/sutton,London Borough of Sutton,06/09/2022,10008658,624.17, TRAVELHOUSE,FLIGHTS NEEDED FOR INTERNATIONAL SOCIAL WORKER,Peoples Services,C.C.A Travel & Subsistance,A61010,
http://opendatacommunities.org/id/london-borough-council/sutton,London Borough of Sutton,06/09/2022,10008658,-660.19, WESTJET AIRLINES,FLIGHTS NEEDED FOR OVERSEAS SOCIAL WORKER,Peoples Services,C.C.A Travel & Subsistance,A61010,
http://opendatacommunities.org/id/london-borough-council/sutton,London Borough of Sutton,09/09/2022,10008658,690.00, TRINITY MEDICARE,AMBULANCE SERVICE,Peoples Services,Miscellaneous Expenses,A49000,
http://opendatacommunities.org/id/london-borough-council/sutton,London Borough of Sutton,01/09/2022,10008658,55.67, MINICABIT,CAB NEEDED FOR A CLIENT,Peoples Services,Client Care/Assistance,A61011,
http://opendatacommunities.org/id/london-borough-council/sutton,London Borough of Sutton,02/09/2022,10008658,89.03, STORAGEMART UK #5215,STORAGE NEEDED FOR A CLIENT,Peoples Services,Storage And Archiving Services,A44085,
http://opendatacommunities.org/id/london-borough-council/sutton,London Borough of Sutton,01/09/2022,10008658,91.67, ACCESS SUTTON,STORAGE NEEDED FOR A CLIENT,Peoples Services,Client Care/Assistance,A61011,
http://opendatacommunities.org/id/london-borough-council/sutton,London Borough of Sutton,07/09/2022,10008658,249.98, ARGOS  SUTTON,DYMOND HOUSE FURNISHING,Peoples Services,Miscellaneous Expenses,A49000,
http://opendatacommunities.org/id/london-borough-council/sutton,London Borough of Sutton,05/09/2022,10008658,12.00, WILKO RETAIL LIMITED,DYMOND HOUSE FURNISHING,Peoples Services,Miscellaneous Expenses,A49000,
http://opendatacommunities.org/id/london-borough-council/sutton,London Borough of Sutton,04/09/2022,10008658,31.25, ASDA SUPERSTORE,DYMOND HOUSE FURNISHING,Peoples Services,Miscellaneous Expenses,A49000,
http://opendatacommunities.org/id/london-borough-council/sutton,London Borough of Sutton,03/09/2022,10008658,13.75, ASDA SUPERSTORE,DYMOND HOUSE FURNISHING,Peoples Services,Miscellaneous Expenses,A49000,
http://opendatacommunities.org/id/london-borough-council/sutton,London Borough of Sutton,03/09/2022,10008658,566.65, ARGOS LTD,DYMOND HOUSE FURNISHING,Peoples Services,Miscellaneous Expenses,A49000,
http://opendatacommunities.org/id/london-borough-council/sutton,London Borough of Sutton,02/09/2022,10008658,400.00, ARGOS PURLEY WAY,DYMOND HOUSE FURNISHING,Peoples Services,Miscellaneous Expenses,A49000,
http://opendatacommunities.org/id/london-borough-council/sutton,London Borough of Sutton,02/09/2022,10008658,100.00, ARGOS WALLINGTON,DYMOND HOUSE FURNISHING,Peoples Services,Miscellaneous Expenses,A49000,
http://opendatacommunities.org/id/london-borough-council/sutton,London Borough of Sutton,02/09/2022,10008658,47.28, ASDA SUPERSTORE,DYMOND HOUSE FURNISHING,Peoples Services,Miscellaneous Expenses,A49000,
http://opendatacommunities.org/id/london-borough-council/sutton,London Borough of Sutton,02/09/2022,10008658,155.83, IKEA LTD 144 CROYDON M,DYMOND HOUSE FURNISHING,Peoples Services,Miscellaneous Expenses,A49000,
http://opendatacommunities.org/id/london-borough-council/sutton,London Borough of Sutton,02/09/2022,10008658,36.83, WILKO RETAIL LIMITED,DYMOND HOUSE FURNISHING,Peoples Services,Miscellaneous Expenses,A49000,
http://opendatacommunities.org/id/london-borough-council/sutton,London Borough of Sutton,01/09/2022,10008658,22.92, ASDA GROCERIES ONLINE,DYMOND HOUSE FURNISHING,Peoples Services,Miscellaneous Expenses,A49000,
http://opendatacommunities.org/id/london-borough-council/sutton,London Borough of Sutton,01/09/2022,10008658,-172.50, IKEA LTD SHOP ONLINE,DYMOND HOUSE FURNISHING,Peoples Services,Miscellaneous Expenses,A49000,
http://opendatacommunities.org/id/london-borough-council/sutton,London Borough of Sutton,30/08/2022,10008658,53.12, WILKO.COM,DYMOND HOUSE FURNISHING,Peoples Services,Miscellaneous Expenses,A49000,
http://opendatacommunities.org/id/london-borough-council/sutton,London Borough of Sutton,30/08/2022,10008658,207.50, IKEA LTD SHOP ONLINE,DYMOND HOUSE FURNISHING,Peoples Services,Miscellaneous Expenses,A49000,
http://opendatacommunities.org/id/london-borough-council/sutton,London Borough of Sutton,30/08/2022,10008658,283.33, IKEA LTD SHOP ONLINE,DYMOND HOUSE FURNISHING,Peoples Services,Miscellaneous Expenses,A49000,
http://opendatacommunities.org/id/london-borough-council/sutton,London Borough of Sutton,30/08/2022,10008658,172.50, IKEA LTD SHOP ONLINE,DYMOND HOUSE FURNISHING,Peoples Services,Miscellaneous Expenses,A49000,
http://opendatacommunities.org/id/london-borough-council/sutton,London Borough of Sutton,29/08/2022,10008658,-23.32, AMZ SOLE RETAIL,SPLIT - CARNABY CHELSEA PORCELAIN CUP AND SAUCER SET OF 4 WHITE LINEN TEA COFFEE MUGS OFFICE HOME DINNERWARE 200CC CRM1271 (100%),Peoples Services,Miscellaneous Expenses,A49000,
http://opendatacommunities.org/id/london-borough-council/sutton,London Borough of Sutton,28/08/2022,10008658,111.25, ASDA GROCERIES ONLINE,DYMOND HOUSE FURNISHING,Peoples Services,Miscellaneous Expenses,A49000,
http://opendatacommunities.org/id/london-borough-council/sutton,London Borough of Sutton,28/08/2022,10008658,-25.00, ASDA GROCERIES ONLINE,DYMOND HOUSE FURNISHING,Peoples Services,Miscellaneous Expenses,A49000,
http://opendatacommunities.org/id/london-borough-council/sutton,London Borough of Sutton,26/08/2022,10008658,402.43, ARGOS LTD,DYMOND HOUSE FURNISHING,Peoples Services,Miscellaneous Expenses,A49000,
http://opendatacommunities.org/id/london-borough-council/sutton,London Borough of Sutton,26/08/2022,10008658,316.46, WILKO.COM,DYMOND HOUSE FURNISHING,Peoples Services,Miscellaneous Expenses,A49000,
http://opendatacommunities.org/id/london-borough-council/sutton,London Borough of Sutton,13/09/2022,10008658,11.00, LBSUTTON MOTO,DEATHCERTWRIGHT,Peoples Services,Funeral Expenses,A44220,
http://opendatacommunities.org/id/london-borough-council/sutton,London Borough of Sutton,22/09/2022,10008658,104.99, CURRYS ONLINE,CURRYS VACUUM PAYMENT,Peoples Services,Equipment And Materials Purchase,A40000,
http://opendatacommunities.org/id/london-borough-council/sutton,London Borough of Sutton,22/09/2022,10008658,6.99, AMZNMKTPLACE,SPLIT - NORJEWS BABY HOME SAFETY SOCKET COVERS CHILD PROOF PLUG SOCKET PROTECTORS/GUARDS (20 PACKS) (100%),Peoples Services,Equipment And Materials Purchase,A40000,
http://opendatacommunities.org/id/london-borough-council/sutton,London Borough of Sutton,22/09/2022,10008658,27.99, AMZNBUSINESS SB1CQ3KE5,SPLIT - BREVILLE BOLD ICE GREY ELECTRIC KETTLE | 1.7L | 3KW FAST BOIL | GREY & SILVER CHROME [VKT222] (100%),Peoples Services,Equipment And Materials Purchase,A40000,
http://opendatacommunities.org/id/london-borough-council/sutton,London Borough of Sutton,22/09/2022,10008658,117.95, ARGOS LTD,ARGOS MICROWAVE PAYMENT,Peoples Services,Equipment And Materials Purchase,A40000,
http://opendatacommunities.org/id/london-borough-council/sutton,London Borough of Sutton,26/09/2022,10008658,9.90, AMZNMKTPLACE,"SPLIT - JASINCESS 15 LITER STRONG BIN LINERS BIN BAGS SMALL BIN GARBAGE BAGS FOR HOME, OFFICE, KITCHEN, BATHROOM (120 PCS., BLACK) (45.25%)",Peoples Services,Equipment And Materials Purchase,A40000,
http://opendatacommunities.org/id/london-borough-council/sutton,London Borough of Sutton,26/09/2022,10008658,11.98, AMZNMKTPLACE,"SPLIT - MR.SIGA MICROFIBER CLEANING CLOTH,PACK OF 12, SIZE:32 X 32 CM (54.75%)",Peoples Services,Equipment And Materials Purchase,A40000,
http://opendatacommunities.org/id/london-borough-council/sutton,London Borough of Sutton,26/09/2022,10008658,15.60, AMZNMKTPLACE,"SPLIT - HARPIC ACTIVE FRESH TOILET CLEANING GEL 750ML - MOUNTAIN PINE, REMOVES LIMESCALE AND STAINS (PACK OF 12) (100%)",Peoples Services,Equipment And Materials Purchase,A40000,
http://opendatacommunities.org/id/london-borough-council/sutton,London Borough of Sutton,26/09/2022,10008658,9.00, AMZNMKTPLACE,"SPLIT - DETTOL ANTIBACTERIAL ALL PURPOSE SURFACE DISINFECTANT CLEANSER, 750 ML, PACK OF 6 (PACKAGING MAY VARY) (100%)",Peoples Services,Equipment And Materials Purchase,A40000,
http://opendatacommunities.org/id/london-borough-council/sutton,London Borough of Sutton,25/09/2022,10008658,21.99, AMZNMKTPLACE,SPLIT - 70% HAND SANITISER GEL 5 LITRE - WITH ALOE VERA EXTRACT - ANTIBACTERIAL HAND SANITIZER GEL KILLS VIRUSES & 99.999% OF BACTERIA. WITH PUMP DISPENSER (S (100%),Peoples Services,Equipment And Materials Purchase,A40000,
http://opendatacommunities.org/id/london-borough-council/sutton,London Borough of Sutton,25/09/2022,10008658,15.00, AMZNMKTPLACE,"SPLIT - GLADE AIR FRESHENER, AEROSOL SPRAY, PACK OF 12, FLORAL BLOSSOM, 300ML (100%)",Peoples Services,Equipment And Materials Purchase,A40000,
http://opendatacommunities.org/id/london-borough-council/sutton,London Borough of Sutton,25/09/2022,10008658,20.53, AMZNMKTPLACE,"SPLIT - ANDREX GENTLE CLEAN TOILET ROLLS - 45 TOILET ROLL PACK - BULK BUY TOILET ROLLS - GENTLE AND SOFT ON YOUR FAMILY'S SKIN - DERMATOLOGICALLY TESTED,45 CO (100%)",Peoples Services,Equipment And Materials Purchase,A40000,
http://opendatacommunities.org/id/london-borough-council/sutton,London Borough of Sutton,25/09/2022,10008658,82.88, AMZNMKTPLACE,SPLIT - KELLY' HARVEST HOUSE DETACHABLE MAGAZINE RACK MAGAZINE STAND DISPLAY SHELF BROCHURE STAND LITERATURE DISPLAY STAND WITH 4 SHELFS FLOOR STANDING MAGAZINE BROCHURE HOLDER (COLOR : WHITE) (100%),Peoples Services,Equipment And Materials Purchase,A40000,
http://opendatacommunities.org/id/london-borough-council/sutton,London Borough of Sutton,24/09/2022,10008658,82.88, AMZNMKTPLACE,SPLIT - KELLY' HARVEST HOUSE DETACHABLE MAGAZINE RACK MAGAZINE STAND DISPLAY SHELF BROCHURE STAND LITERATURE DISPLAY STAND WITH 4 SHELFS FLOOR STANDING MAGAZINE BROCHURE HOLDER (COLOR : WHITE) (100%),Peoples Services,Equipment And Materials Purchase,A40000,
http://opendatacommunities.org/id/london-borough-council/sutton,London Borough of Sutton,23/09/2022,10008658,24.00, AMZNBUSINESS 7L8BZ6Y45,SPLIT - BREVILLE BOLD ICE GREY 2-SLICE TOASTER WITH HIGH-LIFT & WIDE SLOTS | GREY & SILVER CHROME [VTR002] (100%),Peoples Services,Equipment And Materials Purchase,A40000,
http://opendatacommunities.org/id/london-borough-council/sutton,London Borough of Sutton,23/09/2022,10008658,14.90, AMZNMKTPLACE,SPLIT - MR MUSCLE 6 X WINDOW AND GLASS CLEANER 750ML TRIGGER SPRAY PROFESSIONAL (100%),Peoples Services,Equipment And Materials Purchase,A40000,
http://opendatacommunities.org/id/london-borough-council/sutton,London Borough of Sutton,23/09/2022,10008658,11.99, AMZNMKTPLACE,SPLIT - PACK OF 4 HAND TOWELS SET SUPER ABSORBENT 550GSM 100 % EGYPTIAN COTTON HOTEL QUALITY QUEST TOWELS SET SMALL HAND TOWEL FOR BATHROOM SIZE 50X80 (SILVER) (100%),Peoples Services,Equipment And Materials Purchase,A40000,
http://opendatacommunities.org/id/london-borough-council/sutton,London Borough of Sutton,23/09/2022,10008658,15.88, AMZNMKTPLACE,"SPLIT - 2WORK 2W03974 5 L HAND SOAP, PACK OF 1, PINK PEARL (100%)",Peoples Services,Equipment And Materials Purchase,A40000,
http://opendatacommunities.org/id/london-borough-council/sutton,London Borough of Sutton,23/09/2022,10008658,134.99, AMZNMKTPLACE,SPLIT - COOKOLOGY MFR67SS 67 LITRE TABLETOP MINI FRIDGE & ICE BOX IN STAINLESS STEEL LOOK (100%),Peoples Services,Equipment And Materials Purchase,A40000,
http://opendatacommunities.org/id/london-borough-council/sutton,London Borough of Sutton,04/09/2022,10008658,5.91, AMZNMKTPLACE,"SPLIT - RHINOCABLES CAT6 HIGH-SPEED GIGABIT ETHERNET PATCH NETWORK CABLE FOR LAN - SNAGLESS CABLE WITH RJ45 CONNECTOR LEAD - FOR INTERNET, ROUTER, MODEM, SMAR (2.48%)",Environment Housing and Neighbourhoods,Other Capital Expenditure,C20002,
http://opendatacommunities.org/id/london-borough-council/sutton,London Borough of Sutton,04/09/2022,10008658,232.40, AMZNMKTPLACE,SPLIT - KENSINGTON MICROSAVER 2.0 LOCK - KEYED (97.52%),Environment Housing and Neighbourhoods,Other Capital Expenditure,C20002,
http://opendatacommunities.org/id/london-borough-council/sutton,London Borough of Sutton,01/09/2022,10008658,47.31, GSUITE_SUTTONCOLLEGE.A,GOOGLE CLOUD EMEA LIMITED 4446558077,Health and Wellbeing,Subscriptions,A47010,
http://opendatacommunities.org/id/london-borough-council/sutton,London Borough of Sutton,09/09/2022,10008658,5.83, THE WORKS,ERII CONDOLENCE PHOTO FRAME,Health and Wellbeing,Publicity,A44266,
http://opendatacommunities.org/id/london-borough-council/sutton,London Borough of Sutton,09/09/2022,10008658,2.92, WILKO RETAIL LIMITED,RII CONDOLENCE CARD,Health and Wellbeing,Publicity,A44266,
http://opendatacommunities.org/id/london-borough-council/sutton,London Borough of Sutton,09/09/2022,10008658,136.04, WWW.INSTANTPRINT.C,INSTANTPRINT A1 INSPECTION 090922 163.25,Health and Wellbeing,Publicity,A44266,
http://opendatacommunities.org/id/london-borough-council/sutton,London Borough of Sutton,07/09/2022,10008658,47.99, ADOBE STOCK,ADOBE 070922 47.99,Health and Wellbeing,Publicity,A44266,
http://opendatacommunities.org/id/london-borough-council/sutton,London Borough of Sutton,31/08/2022,10008658,52.21, FACEBK  836VDFB6A2,FACEBOOK ADS 310822 52.21,Health and Wellbeing,Publicity,A44266,
http://opendatacommunities.org/id/london-borough-council/sutton,London Borough of Sutton,30/08/2022,10008658,142.40, MAILCHIMP,MAILCHIMP 300822 140.40,Health and Wellbeing,Publicity,A44266,
http://opendatacommunities.org/id/london-borough-council/sutton,London Borough of Sutton,28/08/2022,10008658,500.00, FACEBK  HYCNSEP6A2,FACEBOOK ADS 280822 500.00,Health and Wellbeing,Publicity,A44266,
http://opendatacommunities.org/id/london-borough-council/sutton,London Borough of Sutton,25/08/2022,10008658,162.00, INSTANTPRINT.CO.UK,INSTANTPRINT CASE STUDIES 250822 194.40,Health and Wellbeing,Publicity,A44266,
http://opendatacommunities.org/id/london-borough-council/sutton,London Borough of Sutton,16/09/2022,10008658,129.12, WWW.INSTANTPRINT.C,INSTANTPRINT CULTURAL BANNERS 160922 154.95,Health and Wellbeing,Publicity,A44266,
http://opendatacommunities.org/id/london-borough-council/sutton,London Borough of Sutton,21/09/2022,10008658,221.62, AMZNMKTPLACE,"SPLIT - LENOVO IDEAPAD DUET CHROMEBOOK 10.1 INCH FHD 2-IN-1 LAPTOP - (MEDIATEK P60T, 4 GB RAM, 64 GB EMCP, CHROME OS) (100%)",Peoples Services,LAC - Education,A44280,
http://opendatacommunities.org/id/london-borough-council/sutton,London Borough of Sutton,18/09/2022,10008658,183.32, AMZNMKTPLACE,"SPLIT - HP 14 INCH LAPTOP PC 14S-FQ0014NA, AMD ATHLON 3020E, 4GB RAM, 128GB SSD, FHD, RADEON GRAPHICS, FREE UPGRADE TO WINDOWS 11, MICROSOFT 365 PERSONAL 12 M (100%)",Peoples Services,LAC - Education,A44280,
http://opendatacommunities.org/id/london-borough-council/sutton,London Borough of Sutton,15/09/2022,10008658,25.31, AMZNMKTPLACE AMAZON.CO,"SPLIT - BWOLF BRAVO BOILER SUIT OVERALLS MEN WORK UTILITY & SAFETY COVERALLS WITH MULTIFUNCTIONAL 6 POCKETS AND ZIPPER, DARKBLUE, M (100%)",Peoples Services,LAC - Education,A44280,
http://opendatacommunities.org/id/london-borough-council/sutton,London Borough of Sutton,15/09/2022,10008658,11.66, AMZNMKTPLACE AMAZON.CO,"SPLIT - RAINYEAR 14 INCH LAPTOP SLEEVE PROTECTIVE CASE SOFT FLUFFY LINING PADDED ZIPPER COVER CARRYING BAG COMPATIBLE WITH 14"" NOTEBOOK COMPUTER TABLET ULTRAB (100%)",Peoples Services,LAC - Education,A44280,
http://opendatacommunities.org/id/london-borough-council/sutton,London Borough of Sutton,14/09/2022,10008658,199.99, AMAZON.CO.UK 9W7G54N05,"SPLIT - ACER CHROMEBOOK 314 CB314-1H - (INTEL CELERON N4000, 4GB, 64GB EMMC, 14 INCH FULL HD DISPLAY, GOOGLE CHROME OS, SILVER) (100%)",Peoples Services,LAC - Education,A44280,
http://opendatacommunities.org/id/london-borough-council/sutton,London Borough of Sutton,13/09/2022,10008658,11.66, AMZNMKTPLACE,SPLIT - KAPEK MATHS SET AND SCIENTIFIC CALCULATOR BUNDLE | 200+ INTEGRATED FUNCTIONS AND 2-LINE LCD DISPLAY | 10-PIECE GEOMETRY SET | (BLACK) (100%),Peoples Services,LAC - Education,A44280,
http://opendatacommunities.org/id/london-borough-council/sutton,London Borough of Sutton,13/09/2022,10008658,37.95, AMZNMKTPLACE,SPLIT - BLACK HAMMER MENS LEATHER SAFETY BOOTS STEEL TOE CAP WORK SHOES S3 SRC ANKLE LEATHER BROWN TAN 5007 (9 UK) (71.55%),Peoples Services,LAC - Education,A44280,
http://opendatacommunities.org/id/london-borough-council/sutton,London Borough of Sutton,13/09/2022,10008658,7.00, AMZNMKTPLACE,"SPLIT - USB 2GB MEMORY STICK 2 PACK,EASTBULL USB 2.0 FLASH DRIVES SWIVEL PHOTO MEMORY STICK BULK FOLD STORAGE (RED/PURPLE WITH FREE LANYARD) (15.84%)",Peoples Services,LAC - Education,A44280,
http://opendatacommunities.org/id/london-borough-council/sutton,London Borough of Sutton,13/09/2022,10008658,5.57, AMZNMKTPLACE,"SPLIT - A5 NOTEBOOKS, JOURNAL NOTEBOOK, A5 NOTEPAD NOTEBOOK FOR OFFICE SCHOOL HOME BUSINESS WRITING & NOTE TAKING 80GSM?BLACK? (12.61%)",Peoples Services,LAC - Education,A44280,
http://opendatacommunities.org/id/london-borough-council/sutton,London Borough of Sutton,01/09/2022,10008658,191.66, AMZNMKTPLACE,"SPLIT - HP 14 INCH LAPTOP PC 14S-FQ0015NA, AMD ATHLON 3020E, 4GB RAM, 128GB SSD, FHD, RADEON GRAPHICS, FREE UPGRADE TO WINDOWS 11, MICROSOFT 365 PERSONAL 12 M (100%)",Peoples Services,LAC - Education,A44280,
http://opendatacommunities.org/id/london-borough-council/sutton,London Borough of Sutton,31/08/2022,10008658,9.99, AMZNMKTPLACE AMAZON.CO,"SPLIT - RAINYEAR 14 INCH LAPTOP SLEEVE CASE PROTECTIVE SOFT PADDED ZIPPER COVER CARRYING COMPUTER BAG COMPATIBLE WITH 14"" NOTEBOOK CHROMEBOOK TABLET ULTRABOOK (100%)",Peoples Services,LAC - Education,A44280,
http://opendatacommunities.org/id/london-borough-council/sutton,London Borough of Sutton,31/08/2022,10008658,9.99, AMZNMKTPLACE,"SPLIT - RAINYEAR 14 INCH LAPTOP SLEEVE CASE PROTECTIVE SOFT PADDED ZIPPER COVER CARRYING COMPUTER BAG COMPATIBLE WITH 14"" NOTEBOOK CHROMEBOOK TABLET ULTRABOOK (100%)",Peoples Services,LAC - Education,A44280,
http://opendatacommunities.org/id/london-borough-council/sutton,London Borough of Sutton,31/08/2022,10008658,191.66, AMZNMKTPLACE AMAZON.CO,"SPLIT - HP 14 INCH LAPTOP PC 14S-FQ0015NA, AMD ATHLON 3020E, 4GB RAM, 128GB SSD, FHD, RADEON GRAPHICS, FREE UPGRADE TO WINDOWS 11, MICROSOFT 365 PERSONAL 12 M (100%)",Peoples Services,LAC - Education,A44280,
http://opendatacommunities.org/id/london-borough-council/sutton,London Borough of Sutton,30/08/2022,10008658,35.70, ROYAL MAIL GROUP LTD,POSTAGE,Peoples Services,LAC - Education,A44280,
